[Event "*** Titled Tuesday Blitz"]
[Site "Chess.com"]
[Date "2021.02.16"]
[Round "4"]
[White "DenishevM"]
[Black "HrvojeZagreb"]
[Result "1-0"]
[WhiteElo "2595"]
[BlackElo "2246"]
[TimeControl "180+1"]
[EndTime "10:41:21 PST"]
[Termination "DenishevM won by resignation"]

1. Nf3 {[%clk 0:03:00.1]} 1... f5 {[%clk 0:02:59.2]} 2. d3 {[%clk 0:02:58.4]}
2... d6 {[%clk 0:02:58.4]} 3. e4 {[%clk 0:02:56.4]} 3... e5 {[%clk 0:02:57.8]}
4. Nc3 {[%clk 0:02:49.6]} 4... Nf6 {[%clk 0:02:57.6]} 5. Bg5 {[%clk 0:02:44.4]}
5... Be7 {[%clk 0:02:57.5]} 6. exf5 {[%clk 0:02:37]} 6... Bxf5 {[%clk
0:02:56.8]} 7. d4 {[%clk 0:02:37.4]} 7... e4 {[%clk 0:02:30.9]} 8. Nh4 {[%clk
0:02:31.7]} 8... Bg4 {[%clk 0:02:29.7]} 9. Be2 {[%clk 0:02:30.7]} 9... Bxe2
{[%clk 0:02:28.4]} 10. Qxe2 {[%clk 0:02:31.6]} 10... d5 {[%clk 0:02:28.1]} 11.
Nf5 {[%clk 0:02:30.5]} 11... O-O {[%clk 0:02:06.6]} 12. Nxe7+ {[%clk 0:02:28.5]}
12... Qxe7 {[%clk 0:02:06.6]} 13. Nxd5 {[%clk 0:02:29.1]} 13... Qd6 {[%clk
0:01:57.5]} 14. Nxf6+ {[%clk 0:02:19.1]} 14... gxf6 {[%clk 0:01:49.8]} 15. Be3
{[%clk 0:02:19.4]} 15... f5 {[%clk 0:01:42.9]} 16. g3 {[%clk 0:02:18]} 16... Nc6
{[%clk 0:01:40.9]} 17. O-O-O {[%clk 0:02:15]} 17... Qd5 {[%clk 0:01:32.2]} 18.
c4 {[%clk 0:02:05.9]} 18... Qf7 {[%clk 0:01:28.9]} 19. a3 {[%clk 0:02:03.9]}
19... Na5 {[%clk 0:01:25.1]} 20. d5 {[%clk 0:02:02.9]} 20... b5 {[%clk
0:01:09.5]} 21. cxb5 {[%clk 0:01:55.5]} 21... Rab8 {[%clk 0:01:07.4]} 22. b4
{[%clk 0:01:53.3]} 22... Nb7 {[%clk 0:01:02.3]} 23. a4 {[%clk 0:01:35.4]} 23...
Nd6 {[%clk 0:00:46.9]} 24. Bc5 {[%clk 0:01:33.8]} 24... Rfd8 {[%clk 0:00:35.3]}
25. Qc2 {[%clk 0:01:27.2]} 25... Nc8 {[%clk 0:00:24.9]} 26. Qb3 {[%clk
0:01:19.3]} 26... Nb6 {[%clk 0:00:22.8]} 27. Bxb6 {[%clk 0:01:15.2]} 27... cxb6
{[%clk 0:00:20.8]} 28. Kb1 {[%clk 0:01:15.2]} 28... Rd6 {[%clk 0:00:19.4]} 29.
Rd4 {[%clk 0:01:15.2]} 29... Rbd8 {[%clk 0:00:18.1]} 30. Rhd1 {[%clk 0:01:15.8]}
30... h5 {[%clk 0:00:16.7]} 31. h3 {[%clk 0:01:15.6]} 31... Qg6 {[%clk
0:00:13.3]} 32. Qe3 {[%clk 0:01:12.2]} 32... Qf7 {[%clk 0:00:07.7]} 33. g4
{[%clk 0:01:08.9]} 33... hxg4 {[%clk 0:00:06.3]} 34. hxg4 {[%clk 0:01:08.8]}
34... Rxd5 {[%clk 0:00:06]} 35. Qg5+ {[%clk 0:01:08.6]} 35... Kf8 {[%clk
0:00:04.6]} 36. Qxd8+ {[%clk 0:01:08.1]} 36... Rxd8 {[%clk 0:00:04.5]} 37. Rxd8+
{[%clk 0:01:09]} 1-0

[Event "*** Titled Tuesday Blitz"]
[Site "Chess.com"]
[Date "2021.02.16"]
[Round "4"]
[White "EvgenyT"]
[Black "davidkalashian"]
[Result "1-0"]
[WhiteElo "2928"]
[BlackElo "2573"]
[TimeControl "180+1"]
[EndTime "10:41:23 PST"]
[Termination "EvgenyT won by resignation"]

1. c4 {[%clk 0:03:00.9]} 1... Nf6 {[%clk 0:02:58.5]} 2. Nc3 {[%clk 0:03:00.6]}
2... g6 {[%clk 0:02:58.5]} 3. e4 {[%clk 0:03:00.1]} 3... d6 {[%clk 0:02:58.5]}
4. d4 {[%clk 0:03:00.3]} 4... Bg7 {[%clk 0:02:56.8]} 5. Nf3 {[%clk 0:03:00.5]}
5... Bg4 {[%clk 0:02:56.6]} 6. Be2 {[%clk 0:03:00]} 6... Nfd7 {[%clk 0:02:47.8]}
7. Be3 {[%clk 0:02:56.6]} 7... c5 {[%clk 0:02:27.4]} 8. d5 {[%clk 0:02:53.4]}
8... Bxc3+ {[%clk 0:02:25.6]} 9. bxc3 {[%clk 0:02:52.9]} 9... Qa5 {[%clk
0:02:24.9]} 10. O-O {[%clk 0:02:46.6]} 10... Nb6 {[%clk 0:02:16.5]} 11. e5
{[%clk 0:02:33.3]} 11... Bxf3 {[%clk 0:02:11.9]} 12. Bxf3 {[%clk 0:02:32]} 12...
Nxc4 {[%clk 0:02:06.1]} 13. exd6 {[%clk 0:02:28.3]} 13... Nxe3 {[%clk
0:01:54.3]} 14. Qe1 {[%clk 0:02:27.1]} 14... Nf5 {[%clk 0:01:47.9]} 15. dxe7
{[%clk 0:02:23.7]} 15... Nd7 {[%clk 0:01:26.1]} 16. d6 {[%clk 0:02:22.8]} 16...
Nxd6 {[%clk 0:00:59.6]} 17. Rd1 {[%clk 0:02:21.8]} 17... Qc7 {[%clk 0:00:57.5]}
18. Qe2 {[%clk 0:01:59.5]} 18... Nf5 {[%clk 0:00:43.4]} 19. Rfe1 {[%clk
0:01:56.5]} 19... a6 {[%clk 0:00:34.4]} 20. Bg4 {[%clk 0:01:23.1]} 20... Rb8
{[%clk 0:00:31.7]} 21. Bxf5 {[%clk 0:01:17.1]} 21... gxf5 {[%clk 0:00:32.4]} 22.
Qh5 {[%clk 0:01:15.5]} 22... Qc6 {[%clk 0:00:18.5]} 23. Qxf5 {[%clk 0:00:57.2]}
23... Rg8 {[%clk 0:00:18.8]} 24. g3 {[%clk 0:00:57.1]} 24... Rg6 {[%clk
0:00:19.4]} 25. Re2 {[%clk 0:00:50.3]} 25... Re6 {[%clk 0:00:16.8]} 26. Red2
{[%clk 0:00:50]} 26... Kxe7 {[%clk 0:00:14.9]} 27. Rxd7+ {[%clk 0:00:47.8]}
27... Qxd7 {[%clk 0:00:15.8]} 28. Rxd7+ {[%clk 0:00:47.9]} 28... Kxd7 {[%clk
0:00:16.7]} 29. Qxf7+ {[%clk 0:00:47.3]} 29... Re7 {[%clk 0:00:16.9]} 30. Qd5+
{[%clk 0:00:47.3]} 30... Kc8 {[%clk 0:00:14.1]} 31. Qxc5+ {[%clk 0:00:43.9]}
31... Kd8 {[%clk 0:00:13]} 32. Qd6+ {[%clk 0:00:43.7]} 32... Kc8 {[%clk
0:00:13.3]} 33. Qxe7 {[%clk 0:00:43.3]} 1-0

[Event "*** Titled Tuesday Blitz"]
[Site "Chess.com"]
[Date "2021.02.16"]
[Round "4"]
[White "Nuvas"]
[Black "esapunov"]
[Result "0-1"]
[WhiteElo "2482"]
[BlackElo "2679"]
[TimeControl "180+1"]
[EndTime "10:41:23 PST"]
[Termination "esapunov won by resignation"]

1. d4 {[%clk 0:03:00.9]} 1... Nf6 {[%clk 0:02:59.5]} 2. c4 {[%clk 0:03:01.5]}
2... g6 {[%clk 0:02:59.5]} 3. Nc3 {[%clk 0:03:00.8]} 3... Bg7 {[%clk 0:02:59.9]}
4. e4 {[%clk 0:03:01.5]} 4... O-O {[%clk 0:02:59.9]} 5. h3 {[%clk 0:03:02.2]}
5... d6 {[%clk 0:02:59.8]} 6. Be3 {[%clk 0:03:03]} 6... a6 {[%clk 0:03:00]} 7.
g4 {[%clk 0:02:59.3]} 7... Nbd7 {[%clk 0:02:58]} 8. Bg2 {[%clk 0:02:57.1]} 8...
c5 {[%clk 0:02:58.1]} 9. Nge2 {[%clk 0:02:51.7]} 9... Rb8 {[%clk 0:02:57]} 10.
a4 {[%clk 0:02:43.8]} 10... b6 {[%clk 0:02:50.6]} 11. O-O {[%clk 0:02:39.3]}
11... cxd4 {[%clk 0:02:50.9]} 12. Nxd4 {[%clk 0:02:39.5]} 12... Bb7 {[%clk
0:02:51.2]} 13. f4 {[%clk 0:02:36.1]} 13... e5 {[%clk 0:02:32.8]} 14. Nde2
{[%clk 0:02:30]} 14... exf4 {[%clk 0:02:30.4]} 15. Nxf4 {[%clk 0:02:26.4]} 15...
Nc5 {[%clk 0:02:30.2]} 16. Qc1 {[%clk 0:02:19.3]} 16... Nb3 {[%clk 0:02:25.2]}
17. Qc2 {[%clk 0:02:19.2]} 17... Nxa1 {[%clk 0:02:24.7]} 18. Rxa1 {[%clk
0:02:19.8]} 18... Re8 {[%clk 0:02:22.5]} 19. Rd1 {[%clk 0:02:18.3]} 19... Nxe4
{[%clk 0:01:59.3]} 20. Ncd5 {[%clk 0:01:48.1]} 20... Bxd5 {[%clk 0:01:53.1]} 21.
Nxd5 {[%clk 0:01:49]} 21... Nc5 {[%clk 0:01:50]} 22. b4 {[%clk 0:01:49.1]} 22...
Nd7 {[%clk 0:01:46.3]} 23. Qf2 {[%clk 0:01:48]} 23... a5 {[%clk 0:01:36.6]} 24.
Rf1 {[%clk 0:01:39]} 24... Rf8 {[%clk 0:01:33.7]} 25. b5 {[%clk 0:01:07]} 25...
Nc5 {[%clk 0:01:11.6]} 26. Bd4 {[%clk 0:01:06.7]} 26... f5 {[%clk 0:00:52.1]}
27. Bxg7 {[%clk 0:01:02.4]} 27... Kxg7 {[%clk 0:00:52.4]} 28. Qd4+ {[%clk
0:01:03.1]} 28... Kg8 {[%clk 0:00:49.4]} 29. gxf5 {[%clk 0:01:02.3]} 29... gxf5
{[%clk 0:00:48.3]} 30. Kh1 {[%clk 0:00:57.6]} 30... Rb7 {[%clk 0:00:44.1]} 31.
Nf4 {[%clk 0:00:50.9]} 31... Rg7 {[%clk 0:00:23.7]} 32. Bd5+ {[%clk 0:00:50.5]}
32... Kh8 {[%clk 0:00:24]} 33. Nh5 {[%clk 0:00:50.5]} 33... Qg5 {[%clk
0:00:21.7]} 34. Rg1 {[%clk 0:00:48.3]} 34... Qxg1+ {[%clk 0:00:21.2]} 35. Qxg1
{[%clk 0:00:46.5]} 35... Rxg1+ {[%clk 0:00:20.6]} 36. Kxg1 {[%clk 0:00:47.4]}
36... Nxa4 {[%clk 0:00:20.7]} 37. Nf4 {[%clk 0:00:46.1]} 37... Nc5 {[%clk
0:00:21]} 0-1

[Event "*** Titled Tuesday Blitz"]
[Site "Chess.com"]
[Date "2021.02.16"]
[Round "4"]
[White "esrosenberg"]
[Black "ljuks68"]
[Result "0-1"]
[WhiteElo "2116"]
[BlackElo "2391"]
[TimeControl "180+1"]
[EndTime "10:41:23 PST"]
[Termination "ljuks68 won by resignation"]

1. Nf3 {[%clk 0:03:00.9]} 1... d5 {[%clk 0:02:59.2]} 2. c4 {[%clk 0:03:00.6]}
2... c6 {[%clk 0:02:58.8]} 3. d4 {[%clk 0:03:00.4]} 3... Nf6 {[%clk 0:02:58.9]}
4. Nc3 {[%clk 0:03:00.9]} 4... dxc4 {[%clk 0:02:59]} 5. a4 {[%clk 0:03:00.5]}
5... Bf5 {[%clk 0:02:58.5]} 6. e3 {[%clk 0:03:00.6]} 6... e6 {[%clk 0:02:58.6]}
7. a5 {[%clk 0:03:01.1]} 7... Bb4 {[%clk 0:02:52.2]} 8. Qa4 {[%clk 0:02:59.5]}
8... Qe7 {[%clk 0:02:48.4]} 9. Bxc4 {[%clk 0:02:58.5]} 9... O-O {[%clk
0:02:42.5]} 10. O-O {[%clk 0:02:58.9]} 10... Nbd7 {[%clk 0:02:42.5]} 11. Be2
{[%clk 0:02:57.7]} 11... Bd6 {[%clk 0:02:36.2]} 12. h3 {[%clk 0:02:56.9]} 12...
e5 {[%clk 0:02:36.1]} 13. e4 {[%clk 0:01:48.1]} 13... exd4 {[%clk 0:02:12.6]}
14. Nxd4 {[%clk 0:01:18.9]} 14... Bxe4 {[%clk 0:02:00.1]} 15. Bg5 {[%clk
0:00:56.7]} 15... Qe5 {[%clk 0:01:51.9]} 16. f4 {[%clk 0:00:56.6]} 16... Qc5
{[%clk 0:01:45.2]} 17. Rac1 {[%clk 0:00:42.8]} 17... b5 {[%clk 0:01:34.2]} 18.
Nxe4 {[%clk 0:00:27.5]} 18... Nxe4 {[%clk 0:00:59.7]} 19. Rxc5 {[%clk 0:00:27]}
19... bxa4 {[%clk 0:00:59.7]} 20. Rxc6 {[%clk 0:00:27.5]} 20... Bc5 {[%clk
0:00:55.8]} 21. Rd1 {[%clk 0:00:21.8]} 21... f6 {[%clk 0:00:49]} 22. Bf3 {[%clk
0:00:21.2]} 22... fxg5 {[%clk 0:00:44]} 23. Bxe4 {[%clk 0:00:21.2]} 23... Rxf4
{[%clk 0:00:42.5]} 24. Re6 {[%clk 0:00:17.9]} 24... Rd8 {[%clk 0:00:36.4]} 25.
Kh1 {[%clk 0:00:13.5]} 25... Nf8 {[%clk 0:00:35]} 26. Bd5 {[%clk 0:00:04.9]}
26... Rxd5 {[%clk 0:00:29.5]} 0-1

[Event "*** Titled Tuesday Blitz"]
[Site "Chess.com"]
[Date "2021.02.16"]
[Round "4"]
[White "elindisguise"]
[Black "GMJustin"]
[Result "1-0"]
[WhiteElo "2463"]
[BlackElo "2310"]
[TimeControl "180+1"]
[EndTime "10:41:32 PST"]
[Termination "elindisguise won by checkmate"]

1. d4 {[%clk 0:03:00.9]} 1... Nf6 {[%clk 0:02:49.4]} 2. Bf4 {[%clk 0:03:00.1]}
2... c5 {[%clk 0:02:39]} 3. e3 {[%clk 0:02:55.1]} 3... Qb6 {[%clk 0:02:31.5]} 4.
Nc3 {[%clk 0:02:53.5]} 4... Qxb2 {[%clk 0:02:22.9]} 5. Nb5 {[%clk 0:02:52.7]}
5... Nd5 {[%clk 0:02:06.8]} 6. Rb1 {[%clk 0:02:29.8]} 6... Qxa2 {[%clk
0:02:03.7]} 7. Ra1 {[%clk 0:02:29.6]} 7... Qb2 {[%clk 0:02:02.1]} 8. Rb1 {[%clk
0:02:28.5]} 8... Qa2 {[%clk 0:02:01.8]} 9. Ra1 {[%clk 0:02:02]} 9... Qb2 {[%clk
0:02:01.3]} 10. Nf3 {[%clk 0:01:56.9]} 10... a6 {[%clk 0:00:58.7]} 11. Rb1
{[%clk 0:01:50.9]} 11... Qa2 {[%clk 0:00:53.9]} 12. Ra1 {[%clk 0:01:50]} 12...
Qb2 {[%clk 0:00:54]} 13. Bc4 {[%clk 0:01:46.1]} 13... Nc3 {[%clk 0:00:40.1]} 14.
Nxc3 {[%clk 0:01:23.2]} 14... Qxc3+ {[%clk 0:00:39.6]} 15. Nd2 {[%clk
0:01:24.1]} 15... cxd4 {[%clk 0:00:36.6]} 16. O-O {[%clk 0:01:05.8]} 16... Nc6
{[%clk 0:00:35.3]} 17. Qe2 {[%clk 0:00:53.1]} 17... dxe3 {[%clk 0:00:28.8]} 18.
fxe3 {[%clk 0:00:51]} 18... e6 {[%clk 0:00:28]} 19. Ne4 {[%clk 0:00:45.7]} 19...
Qb4 {[%clk 0:00:24.2]} 20. Rfb1 {[%clk 0:00:44.9]} 20... Qe7 {[%clk 0:00:17.1]}
21. Nd6+ {[%clk 0:00:44.8]} 21... Kd8 {[%clk 0:00:16.3]} 22. e4 {[%clk
0:00:44.9]} 22... g6 {[%clk 0:00:12.2]} 23. e5 {[%clk 0:00:42.6]} 23... Bg7
{[%clk 0:00:11.9]} 24. Be3 {[%clk 0:00:40.4]} 24... Qh4 {[%clk 0:00:06.4]} 25.
Bb6+ {[%clk 0:00:37.8]} 25... Ke7 {[%clk 0:00:06.7]} 26. Bc5 {[%clk 0:00:37.8]}
26... Kd8 {[%clk 0:00:03.5]} 27. Nxf7+ {[%clk 0:00:37.6]} 27... Ke8 {[%clk
0:00:03.6]} 28. Nd6+ {[%clk 0:00:37.6]} 28... Kd8 {[%clk 0:00:03.4]} 29. Rf1
{[%clk 0:00:35]} 29... Rf8 {[%clk 0:00:02.8]} 30. Rxf8+ {[%clk 0:00:32.9]} 30...
Bxf8 {[%clk 0:00:02.5]} 31. Rf1 {[%clk 0:00:33.8]} 31... Be7 {[%clk 0:00:02]}
32. Bb6# {[%clk 0:00:33.5]} 1-0

[Event "*** Titled Tuesday Blitz"]
[Site "Chess.com"]
[Date "2021.02.16"]
[Round "4"]
[White "soumeow"]
[Black "Alex-11211"]
[Result "0-1"]
[WhiteElo "2209"]
[BlackElo "2413"]
[TimeControl "180+1"]
[EndTime "10:41:32 PST"]
[Termination "Alex-11211 won on time"]

1. Nf3 {[%clk 0:03:00.9]} 1... g6 {[%clk 0:02:59.8]} 2. c4 {[%clk 0:02:58.7]}
2... Bg7 {[%clk 0:03:00.7]} 3. d4 {[%clk 0:02:55.5]} 3... c5 {[%clk 0:03:01.6]}
4. d5 {[%clk 0:02:53.7]} 4... Nf6 {[%clk 0:03:00.8]} 5. Nc3 {[%clk 0:02:53.5]}
5... O-O {[%clk 0:03:01.7]} 6. e4 {[%clk 0:02:53.4]} 6... d6 {[%clk 0:03:02.6]}
7. Bd3 {[%clk 0:02:47.8]} 7... e6 {[%clk 0:03:03]} 8. O-O {[%clk 0:02:46.5]}
8... exd5 {[%clk 0:03:03.3]} 9. exd5 {[%clk 0:02:46.5]} 9... Bg4 {[%clk
0:03:02.2]} 10. h3 {[%clk 0:02:33.1]} 10... Bxf3 {[%clk 0:03:02.1]} 11. Qxf3
{[%clk 0:02:34]} 11... Nfd7 {[%clk 0:03:02.8]} 12. Qd1 {[%clk 0:02:31.4]} 12...
Ne5 {[%clk 0:02:58.3]} 13. Be2 {[%clk 0:02:31.3]} 13... f5 {[%clk 0:02:57.3]}
14. Rb1 {[%clk 0:02:06.6]} 14... Nbd7 {[%clk 0:02:44.8]} 15. b3 {[%clk
0:01:54.1]} 15... a6 {[%clk 0:02:02.4]} 16. Bb2 {[%clk 0:01:52.1]} 16... Qh4
{[%clk 0:02:01.5]} 17. Re1 {[%clk 0:01:20.6]} 17... Rae8 {[%clk 0:01:46.8]} 18.
Qc2 {[%clk 0:01:12.8]} 18... Nf7 {[%clk 0:01:23.8]} 19. Bf1 {[%clk 0:01:06.5]}
19... Ng5 {[%clk 0:01:14.4]} 20. Rbd1 {[%clk 0:00:11]} 20... Bd4 {[%clk
0:00:59.7]} 21. Bc1 {[%clk 0:00:09.2]} 21... Ne5 {[%clk 0:00:43.2]} 22. Bxg5
{[%clk 0:00:04.1]} 22... Qxg5 {[%clk 0:00:43.1]} 23. Kh2 {[%clk 0:00:02.6]}
23... Qf4+ {[%clk 0:00:36.6]} 24. Kg1 {[%clk 0:00:02.8]} 24... Qg3 {[%clk
0:00:20.6]} 25. Re2 {[%clk 0:00:02.4]} 25... Nf3+ {[%clk 0:00:19.9]} 0-1

[Event "*** Titled Tuesday Blitz"]
[Site "Chess.com"]
[Date "2021.02.16"]
[Round "4"]
[White "ellennilssen"]
[Black "Orest_Vovk"]
[Result "1-0"]
[WhiteElo "2239"]
[BlackElo "2395"]
[TimeControl "180+1"]
[EndTime "10:41:35 PST"]
[Termination "ellennilssen won by resignation"]

1. c4 {[%clk 0:03:00.9]} 1... d6 {[%clk 0:02:50.3]} 2. Nc3 {[%clk 0:02:59.5]}
2... Kd7 {[%clk 0:02:50.7]} 3. g3 {[%clk 0:02:56.6]} 3... c6 {[%clk 0:02:51]} 4.
d4 {[%clk 0:02:53.9]} 4... Kc7 {[%clk 0:02:51.2]} 5. e4 {[%clk 0:02:52.9]} 5...
Bd7 {[%clk 0:02:50]} 6. Bg2 {[%clk 0:02:52.8]} 6... Be8 {[%clk 0:02:49.4]} 7.
Nf3 {[%clk 0:02:52.1]} 7... Kc8 {[%clk 0:02:48.7]} 8. b4 {[%clk 0:02:50.9]} 8...
Nd7 {[%clk 0:02:45.9]} 9. d5 {[%clk 0:02:49.2]} 9... g6 {[%clk 0:02:39.7]} 10.
Be3 {[%clk 0:02:48]} 10... Bg7 {[%clk 0:02:39.2]} 11. Rc1 {[%clk 0:02:48.2]}
11... Ngf6 {[%clk 0:02:36.4]} 12. O-O {[%clk 0:02:46.3]} 12... Ng4 {[%clk
0:02:34.4]} 13. Bd4 {[%clk 0:02:45.3]} 13... Bxd4 {[%clk 0:02:33.4]} 14. Nxd4
{[%clk 0:02:46.2]} 14... c5 {[%clk 0:02:31.1]} 15. bxc5 {[%clk 0:02:47.1]} 15...
dxc5 {[%clk 0:02:26.8]} 16. Qxg4 {[%clk 0:02:42.8]} 16... cxd4 {[%clk 0:02:25]}
17. Nb5 {[%clk 0:02:43.4]} 17... Qb6 {[%clk 0:02:19.9]} 18. e5 {[%clk
0:02:28.7]} 18... h5 {[%clk 0:02:15.2]} 19. Qe4 {[%clk 0:02:24.8]} 19... a6
{[%clk 0:01:46.9]} 20. Nxd4 {[%clk 0:02:24.2]} 20... Nc5 {[%clk 0:01:46.3]} 21.
Qe3 {[%clk 0:02:23]} 21... Ba4 {[%clk 0:01:38.9]} 22. Rb1 {[%clk 0:02:20.4]}
22... Qc7 {[%clk 0:01:37.7]} 23. Nb3 {[%clk 0:02:10]} 23... Bxb3 {[%clk
0:01:33]} 24. axb3 {[%clk 0:02:10.9]} 24... a5 {[%clk 0:01:32.1]} 25. b4 {[%clk
0:02:07.3]} 25... axb4 {[%clk 0:01:31.2]} 26. Rxb4 {[%clk 0:02:08.2]} 26... Kd8
{[%clk 0:01:17.3]} 27. d6 {[%clk 0:01:47.8]} 27... exd6 {[%clk 0:01:12.7]} 28.
exd6 {[%clk 0:01:48.7]} 28... Qxd6 {[%clk 0:01:13.2]} 29. Qg5+ {[%clk
0:01:47.9]} 29... Kc7 {[%clk 0:01:11.4]} 30. Rb5 {[%clk 0:01:36.6]} 30... f5
{[%clk 0:01:07.2]} 31. Qe3 {[%clk 0:01:31.3]} 31... b6 {[%clk 0:00:49.7]} 32.
Bxa8 {[%clk 0:01:26.7]} 32... Rxa8 {[%clk 0:00:50.6]} 33. Re1 {[%clk 0:01:25.9]}
33... Ne4 {[%clk 0:00:39.5]} 34. f3 {[%clk 0:01:23.7]} 34... Nxg3 {[%clk
0:00:39.3]} 35. Qe7+ {[%clk 0:01:13]} 35... Qxe7 {[%clk 0:00:38.2]} 36. Rxe7+
{[%clk 0:01:13.9]} 36... Kd6 {[%clk 0:00:39]} 37. Re1 {[%clk 0:01:03.2]} 37...
h4 {[%clk 0:00:26.5]} 38. hxg3 {[%clk 0:01:03.2]} 38... hxg3 {[%clk 0:00:27.4]}
39. f4 {[%clk 0:01:00.6]} 39... Ra3 {[%clk 0:00:21]} 40. Rd5+ {[%clk 0:00:54]}
40... Kc7 {[%clk 0:00:18.2]} 41. Re7+ {[%clk 0:00:53.9]} 41... Kc8 {[%clk
0:00:17.2]} 42. Re6 {[%clk 0:00:51.4]} 42... Kc7 {[%clk 0:00:16.2]} 43. Rxg6
{[%clk 0:00:50.3]} 43... Rf3 {[%clk 0:00:15.9]} 44. Rxf5 {[%clk 0:00:49.4]} 1-0

[Event "*** Titled Tuesday Blitz"]
[Site "Chess.com"]
[Date "2021.02.16"]
[Round "4"]
[White "AlexeiShirov"]
[Black "zeitnot2006"]
[Result "1-0"]
[WhiteElo "2836"]
[BlackElo "2534"]
[TimeControl "180+1"]
[EndTime "10:41:40 PST"]
[Termination "AlexeiShirov won by resignation"]

1. e4 {[%clk 0:03:00.9]} 1... c5 {[%clk 0:02:57]} 2. Nf3 {[%clk 0:03:00.3]} 2...
e6 {[%clk 0:02:57.4]} 3. d4 {[%clk 0:02:59.7]} 3... cxd4 {[%clk 0:02:58.3]} 4.
Nxd4 {[%clk 0:02:59.8]} 4... Nc6 {[%clk 0:02:58.6]} 5. Nc3 {[%clk 0:02:58.8]}
5... Qc7 {[%clk 0:02:59.1]} 6. Be3 {[%clk 0:02:57.1]} 6... a6 {[%clk 0:02:58.6]}
7. Qf3 {[%clk 0:02:56.9]} 7... Nf6 {[%clk 0:02:56.3]} 8. O-O-O {[%clk
0:02:55.1]} 8... Ne5 {[%clk 0:02:56.2]} 9. Qg3 {[%clk 0:02:51.6]} 9... b5 {[%clk
0:02:55.5]} 10. f4 {[%clk 0:02:48.2]} 10... Neg4 {[%clk 0:02:54.5]} 11. Bg1
{[%clk 0:02:32.8]} 11... h5 {[%clk 0:02:53.1]} 12. Bd3 {[%clk 0:02:15.5]} 12...
Bb7 {[%clk 0:02:33.6]} 13. h3 {[%clk 0:02:07.7]} 13... Nh6 {[%clk 0:01:59.5]}
14. Qe3 {[%clk 0:02:04.5]} 14... Rc8 {[%clk 0:01:51.7]} 15. Bf2 {[%clk
0:01:55.4]} 15... Bc5 {[%clk 0:01:39.6]} 16. Nce2 {[%clk 0:01:36.3]} 16... d5
{[%clk 0:01:29.8]} 17. e5 {[%clk 0:01:28.5]} 17... Ne4 {[%clk 0:01:28.2]} 18.
Bxe4 {[%clk 0:01:22.8]} 18... dxe4 {[%clk 0:01:29.1]} 19. g4 {[%clk 0:01:22.5]}
19... Bd5 {[%clk 0:01:18.6]} 20. Kb1 {[%clk 0:01:20.3]} 20... b4 {[%clk
0:01:03]} 21. Rhg1 {[%clk 0:01:09.1]} 21... Qa5 {[%clk 0:00:43]} 22. Nc1 {[%clk
0:01:06.4]} 22... Qc7 {[%clk 0:00:34.8]} 23. Qe2 {[%clk 0:01:00.8]} 23... Qb7
{[%clk 0:00:15.6]} 24. Ncb3 {[%clk 0:00:49.4]} 24... Ba7 {[%clk 0:00:11.7]} 25.
f5 {[%clk 0:00:48]} 25... O-O {[%clk 0:00:03.7]} 26. gxh5 {[%clk 0:00:46.9]}
26... Nxf5 {[%clk 0:00:02.7]} 27. Nxf5 {[%clk 0:00:45.3]} 27... exf5 {[%clk
0:00:03.6]} 28. Bxa7 {[%clk 0:00:41.8]} 28... Bxb3 {[%clk 0:00:03.2]} 29. axb3
{[%clk 0:00:39.2]} 29... Qxa7 {[%clk 0:00:03.6]} 30. Qg2 {[%clk 0:00:35.4]}
30... f6 {[%clk 0:00:03.6]} 31. h6 {[%clk 0:00:34]} 31... g5 {[%clk 0:00:03.9]}
32. exf6 {[%clk 0:00:33.1]} 32... Kh7 {[%clk 0:00:03.9]} 33. Qxg5 {[%clk
0:00:28.8]} 33... Rg8 {[%clk 0:00:04.5]} 34. Qxf5+ {[%clk 0:00:28.3]} 34... Kh8
{[%clk 0:00:04.1]} 35. Rg7 {[%clk 0:00:27.8]} 35... Qc5 {[%clk 0:00:03.7]} 1-0

[Event "*** Titled Tuesday Blitz"]
[Site "Chess.com"]
[Date "2021.02.16"]
[Round "4"]
[White "KNCP_719"]
[Black "Sir_Frankie_Crisp"]
[Result "1-0"]
[WhiteElo "2604"]
[BlackElo "2269"]
[TimeControl "180+1"]
[EndTime "10:41:40 PST"]
[Termination "KNCP_719 won by resignation"]

1. e4 {[%clk 0:03:00.9]} 1... c5 {[%clk 0:02:58.2]} 2. Nf3 {[%clk 0:03:01.2]}
2... d6 {[%clk 0:02:58.6]} 3. Bb5+ {[%clk 0:03:00.8]} 3... Bd7 {[%clk
0:02:57.8]} 4. Bxd7+ {[%clk 0:03:01.1]} 4... Qxd7 {[%clk 0:02:58.7]} 5. O-O
{[%clk 0:03:01.2]} 5... Nf6 {[%clk 0:02:59.2]} 6. Re1 {[%clk 0:03:02.1]} 6...
Nc6 {[%clk 0:02:58.9]} 7. c3 {[%clk 0:03:03]} 7... e6 {[%clk 0:02:58.4]} 8. d4
{[%clk 0:03:03.7]} 8... cxd4 {[%clk 0:02:59.3]} 9. cxd4 {[%clk 0:03:04.6]} 9...
d5 {[%clk 0:03:00]} 10. e5 {[%clk 0:03:05.4]} 10... Ne4 {[%clk 0:03:00.6]} 11.
Nbd2 {[%clk 0:03:06.3]} 11... Nxd2 {[%clk 0:02:58.3]} 12. Bxd2 {[%clk
0:03:07.2]} 12... Be7 {[%clk 0:02:58.6]} 13. Rc1 {[%clk 0:03:07.8]} 13... O-O
{[%clk 0:02:57.8]} 14. Rc3 {[%clk 0:03:08.5]} 14... Rac8 {[%clk 0:02:46.8]} 15.
a3 {[%clk 0:03:07.7]} 15... a6 {[%clk 0:02:39.9]} 16. Rd3 {[%clk 0:03:07.6]}
16... f6 {[%clk 0:02:21.5]} 17. Qe2 {[%clk 0:02:48.5]} 17... fxe5 {[%clk
0:02:21.2]} 18. Nxe5 {[%clk 0:02:48.7]} 18... Nxe5 {[%clk 0:02:21.8]} 19. Qxe5
{[%clk 0:02:49.5]} 19... Bf6 {[%clk 0:01:47.6]} 20. Qxe6+ {[%clk 0:02:32.2]}
20... Qxe6 {[%clk 0:01:48.5]} 21. Rxe6 {[%clk 0:02:32.2]} 21... Rc2 {[%clk
0:01:49.2]} 22. Rb6 {[%clk 0:02:06.6]} 22... Rfc8 {[%clk 0:01:29.6]} 23. Kf1
{[%clk 0:02:01.6]} 23... R8c4 {[%clk 0:01:27.4]} 24. Bc3 {[%clk 0:01:57.1]}
24... Rc7 {[%clk 0:01:23.4]} 25. Re6 {[%clk 0:01:25.9]} 25... Kf7 {[%clk
0:01:21.5]} 26. Re1 {[%clk 0:01:20.2]} 26... b5 {[%clk 0:01:14.8]} 27. Rf3
{[%clk 0:01:05.9]} 27... a5 {[%clk 0:00:51.3]} 28. Bxa5 {[%clk 0:01:02.6]} 28...
R7c4 {[%clk 0:00:51.2]} 29. Bc3 {[%clk 0:01:03]} 29... Kf8 {[%clk 0:00:44.8]}
30. g4 {[%clk 0:00:50.2]} 30... h6 {[%clk 0:00:39.2]} 31. h4 {[%clk 0:00:50.5]}
31... Kg8 {[%clk 0:00:39]} 32. g5 {[%clk 0:00:41.3]} 32... hxg5 {[%clk
0:00:27.7]} 33. hxg5 {[%clk 0:00:42.2]} 33... Bxg5 {[%clk 0:00:24.1]} 34. Re5
{[%clk 0:00:41.7]} 34... Bf6 {[%clk 0:00:17.8]} 35. Rxd5 {[%clk 0:00:41.6]}
35... Rc1+ {[%clk 0:00:18.5]} 36. Kg2 {[%clk 0:00:41.5]} 36... Rd1 {[%clk
0:00:19]} 37. Rxb5 {[%clk 0:00:37.1]} 37... Bxd4 {[%clk 0:00:18.4]} 38. Rf4
{[%clk 0:00:35.6]} 38... Rc5 {[%clk 0:00:10.8]} 39. Rb8+ {[%clk 0:00:32.9]} 1-0